[Event "CRO Team Cup 2019"]
[Site "Losinj"]
[Date "2019.05.18"]
[Round "5.8"]
[White "Boric, Muhamed"]
[Black "Plenca, Jadranko"]
[Result "1/2-1/2"]
[ECO "D02"]
[WhiteElo "2342"]
[BlackElo "2468"]
[Annotator "ChessBase"]
[PlyCount "70"]
[EventDate "2019.05.15"]
[EventType "team-tourn"]
[EventCountry "CRO"]
[SourceTitle "playchess.com"]
[Source "ChessBase"]
[SourceQuality "1"]
[TimeControl "40/5400+30:1800+30"]

1. Nf3 {[%emt 0:01:30]} d5 {[%emt 0:00:30]} 2. g3 {[%emt 0:01:30]} g6 {[%emt 0:01:30]} 3. d4 {[%emt 0:00:30]} Bg7 {[%emt 0:00:00]} 4. Bg2 {[%emt 0:00:00]} Nf6 {[%emt 0:00:00]} 5. O-O {[%emt 0:00:00]} Nbd7 {[%emt 0:00:30]} 6. Na3 {[%emt 0:01:30]} Nb6 {[%emt 0:02:30]} 7. Bf4 {[%emt 0:16:30]} c6 {[%emt 0:01:30]} 8. Qc1 {[%emt 0:01:30]} h6 {[%emt 0:03:30]} 9. Ne5 {[%emt 0:17:30]} Ng4 {[%emt 0:04:30]} 10. Nxg4 {[%emt 0:01:30]} Bxg4 {[%emt 0:00:30]} 11. Qd2 {[%emt 0:00:30]} Qd7 {[%emt 0:03:30]} 12. Rfe1 {[%emt 0:06:30]} g5 {[%emt 0:11:30]} 13. Be3 {[%emt 0:00:00]} Bh3 {[%emt 0:01:30]} 14. Red1 {[%emt 0:08:00]} Bxg2 {[%emt 0:03:30]} 15. Kxg2 {[%emt 0:00:30]} f6 {[%emt 0:08:30]} 16. Rh1 {[%emt 0:00:30]} e5 {[%emt 0:01:30]} 17. Rad1 {[%emt 0:07:30]} Qe6 {[%emt 0:10:30]} 18. Qd3 {[%emt 0:12:30]} O-O-O {[%emt 0:03:30]} 19. Qg6 {[%emt 0:01:30]} e4 {[%emt 0:04:30]} 20. h4 {[%emt 0:06:17]} Qd7 {[%emt 0:08:30]} 21. hxg5 {[%emt 0:01:18]} fxg5 {[%emt 0:00:00]} 22. b3 {[%emt 0:00:10]} Rhf8 {[%emt 0:02:00]} 23. c4 {[%emt 0:01:38]} Qe7 {[%emt 0:01:30]} 24. c5 {[%emt 0:06:25]} Nd7 {[%emt 0:00:30]} 25. Nc2 {[%emt 0:00:05]} Rf6 {[%emt 0:01:30]} 26. Qh5 {[%emt 0:00:09]} Rdf8 {[%emt 0:00:30]} 27. b4 {[%emt 0:00:27]} Rf5 {[%emt 0:01:30]} 28. a4 {[%emt 0:00:26]} Qe6 {[%emt 0:03:30]} 29. b5 {[%emt 0:00:47]} Nf6 {[%emt 0:00:30]} 30. Qh3 {[%emt 0:02:41]} Ng4 {[%emt 0:01:40]} 31. Qxg4 {[%emt 0:00:42]} Rxf2+ {[%emt 0:00:30]} 32. Kh3 {[%emt 0:00:07]} R2f5 {[%emt 0:01:42]} 33. Kg2 {[%emt 0:00:11]} Rf2+ {[%emt 0:01:05]} 34. Kh3 {[%emt 0:00:08]} R2f5 {[%emt 0:00:19]} 35. Kg2 {[%emt 0:00:06]} Rf2+ {[%emt 0:00:05]} 1/2-1/2

[Event "CRO Team Cup 2019"]
[Site "Losinj"]
[Date "2019.05.18"]
[Round "5.9"]
[White "Martinovic, Sasa"]
[Black "Bozanic, Ivica"]
[Result "1-0"]
[ECO "B06"]
[WhiteElo "2560"]
[BlackElo "2171"]
[Annotator "RC"]
[PlyCount "41"]
[EventDate "2019.05.15"]
[EventType "team-tourn"]
[EventCountry "CRO"]
[SourceTitle "playchess.com"]
[Source "ChessBase"]
[SourceQuality "1"]
[TimeControl "40/5400+30:1800+30"]

1. d4 {[%emt 0:00:30]} d6 {[%emt 0:03:30]} 2. Nf3 {[%emt 0:00:00]} g6 {[%emt 0:02:30]} 3. e4 {[%emt 0:00:00]} Bg7 {[%emt 0:00:00]} 4. Be3 {[%emt 0:00:00]} c6 {[%emt 0:04:00]} 5. c4 {[%emt 0:01:00]} e5 {[%emt 0:04:30]} 6. Nc3 {[%emt 0:00:00]} Bg4 {[%emt 0:07:30]} 7. d5 {[%emt 0:02:00]} c5 {[%emt 0:02:30]} 8. Be2 {[%emt 0:15:30]} Bxf3 {[%emt 0:04:30]} 9. Bxf3 {[%emt 0:00:30]} h5 {[%emt 0:00:30]} 10. b4 {[%emt 0:11:30]} b6 {[%emt 0:26:30]} 11. bxc5 {[%emt 0:01:30]} bxc5 {[%emt 0:01:30]} 12. Qa4+ {[%emt 0:02:30]} Kf8 {[%emt 0:03:30]} 13. Rb1 {[%emt 0:03:30]} Nd7 {[%emt 0:12:30]} 14. Rb7 {[%emt 0:03:30]} Nb6 {[%emt 0:05:39]} 15. Qa6 {[%emt 0:01:30]} Ne7 {[%emt 0:00:44]} 16. O-O {[%emt 0:06:30]} Bf6 {[%emt 0:05:11]} 17. a4 {[%emt 0:02:30]} Rb8 {[%emt 0:06:03]} 18. Rxb8 {[%emt 0:08:30]} Qxb8 {[%emt 0:00:02]} 19. Rb1 {[%emt 0:00:00]} Qc8 {[%emt 0:01:29]} 20. Qxa7 {[%emt 0:00:00]} Nd7 {[%emt 0:02:07]} 21. Rb7 {[%emt 0:00:30]} 1-0

[Event "CRO Team Cup 2019"]
[Site "Losinj"]
[Date "2019.05.18"]
[Round "5.10"]
[White "Juric, Goran"]
[Black "Cvitan, Ognjen"]
[Result "0-1"]
[ECO "D50"]
[WhiteElo "2216"]
[BlackElo "2484"]
[Annotator "ChessBase"]
[PlyCount "50"]
[EventDate "2019.05.15"]
[EventType "team-tourn"]
[EventCountry "CRO"]
[SourceTitle "playchess.com"]
[Source "ChessBase"]
[SourceQuality "1"]
[TimeControl "40/5400+30:1800+30"]

1. d4 {[%emt 0:04:30]} Nf6 {[%emt 0:02:30]} 2. c4 {[%emt 0:00:30]} e6 {[%emt 0:05:30]} 3. Nf3 {[%emt 0:00:30]} c5 {[%emt 0:01:30]} 4. Nc3 {[%emt 0:02:30]} cxd4 {[%emt 0:02:30]} 5. Nxd4 {[%emt 0:00:00]} d5 {[%emt 0:00:30]} 6. Bg5 {[%emt 0:06:00]} e5 {[%emt 0:05:30]} 7. Nc2 {[%emt 0:07:30]} d4 {[%emt 0:06:30]} 8. Nd5 {[%emt 0:01:30]} Be7 {[%emt 0:03:30]} 9. Bxf6 {[%emt 0:07:30]} Bxf6 {[%emt 0:00:00]} 10. e4 {[%emt 0:00:30]} O-O {[%emt 0:03:00]} 11. b4 {[%emt 0:04:30]} Be6 {[%emt 0:01:30]} 12. Nxf6+ {[%emt 0:08:30]} Qxf6 {[%emt 0:00:30]} 13. Bd3 {[%emt 0:00:30]} Rc8 {[%emt 0:02:30]} 14. Qe2 {[%emt 0:00:30]} a5 {[%emt 0:01:30]} 15. a3 {[%emt 0:00:30]} axb4 {[%emt 0:00:30]} 16. axb4 {[%emt 0:02:30]} Rxa1+ {[%emt 0:00:00]} 17. Nxa1 {[%emt 0:00:30]} Qe7 {[%emt 0:33:00]} 18. Nc2 {[%emt 0:01:30]} Na6 {[%emt 0:01:30]} 19. c5 {[%emt 0:04:30]} Nxb4 {[%emt 0:00:00]} 20. Nxb4 {[%emt 0:02:30]} Qxc5 {[%emt 0:00:00]} 21. Nc2 {[%emt 0:00:30]} Bb3 {[%emt 0:00:30]} 22. O-O {[%emt 0:00:00]} Bxc2 {[%emt 0:00:30]} 23. Rc1 {[%emt 0:00:00]} Bxd3 {[%emt 0:00:00]} 24. Rxc5 {[%emt 0:00:30]} Rxc5 {[%emt 0:00:00]} 25. Qb2 {[%emt 0:03:30]} Rb5 {[%emt 0:00:30]} 0-1

[Event "CRO Team Cup 2019"]
[Site "Losinj"]
[Date "2019.05.18"]
[Round "5.11"]
[White "Rogic, Davor"]
[Black "Gracin, Damir"]
[Result "1-0"]
[ECO "B07"]
[WhiteElo "2498"]
[BlackElo "2092"]
[Annotator "RC"]
[PlyCount "57"]
[EventDate "2019.05.15"]
[EventType "team-tourn"]
[EventCountry "CRO"]
[SourceTitle "playchess.com"]
[Source "ChessBase"]
[SourceQuality "1"]
[TimeControl "40/5400+30:1800+30"]

1. e4 {[%emt 0:11:30]} g6 {[%emt 0:01:30]} 2. d4 {[%emt 0:00:30]} Bg7 {[%emt 0:00:00]} 3. c3 {[%emt 0:01:30]} d6 {[%emt 0:02:00]} 4. Nf3 {[%emt 0:00:30]} Nf6 {[%emt 0:00:30]} 5. Bd3 {[%emt 0:00:00]} O-O {[%emt 0:00:30]} 6. O-O {[%emt 0:00:00]} c5 {[%emt 0:01:30]} 7. h3 {[%emt 0:02:30]} Bd7 {[%emt 0:08:30]} 8. Be3 {[%emt 0:02:30]} Qc8 {[%emt 0:03:30]} 9. Nbd2 {[%emt 0:02:30]} b5 {[%emt 0:10:30]} 10. Qe2 {[%emt 0:03:30]} a6 {[%emt 0:02:30]} 11. b3 {[%emt 0:04:30]} Re8 {[%emt 0:12:30]} 12. a4 {[%emt 0:01:30]} bxa4 {[%emt 0:02:30]} 13. bxa4 {[%emt 0:00:30]} Ra7 {[%emt 0:04:30]} 14. Rfb1 {[%emt 0:03:30]} Rb7 {[%emt 0:00:30]} 15. a5 {[%emt 0:17:30]} Rxb1+ {[%emt 0:09:30]} 16. Rxb1 {[%emt 0:02:30]} cxd4 {[%emt 0:00:30]} 17. cxd4 {[%emt 0:00:30]} Qc7 {[%emt 0:01:30]} 18. Nb3 {[%emt 0:09:30]} Bc8 {[%emt 0:16:30]} 19. Nfd2 {[%emt 0:02:30]} Bb7 {[%emt 0:08:01]} 20. d5 {[%emt 0:02:30]} Nfd7 {[%emt 0:00:58]} 21. Rc1 {[%emt 0:00:30]} Qd8 {[%emt 0:00:45]} 22. Nc4 {[%emt 0:00:30]} Ne5 {[%emt 0:01:40]} 23. Nxe5 {[%emt 0:02:30]} Bxe5 {[%emt 0:00:11]} 24. f4 {[%emt 0:00:30]} Bf6 {[%emt 0:01:12]} 25. Bb6 {[%emt 0:00:30]} Qd7 {[%emt 0:00:12]} 26. Rc7 {[%emt 0:00:00]} Qa4 {[%emt 0:00:05]} 27. Qc2 {[%emt 0:03:00]} Ba8 {[%emt 0:00:47]} 28. Qc4 {[%emt 0:01:30]} Qa2 {[%emt 0:01:31]} 29. Ra7 {[%emt 0:00:30]} 1-0

[Event "CRO Team Cup 2019"]
[Site "Losinj"]
[Date "2019.05.18"]
[Round "5.12"]
[White "Grozdanic, Goran"]
[Black "Kovacevic, Vlatko"]
[Result "0-1"]
[ECO "A85"]
[WhiteElo "2014"]
[BlackElo "2470"]
[Annotator "RC"]
[PlyCount "62"]
[EventDate "2019.05.15"]
[EventType "team-tourn"]
[EventCountry "CRO"]
[SourceTitle "playchess.com"]
[Source "ChessBase"]
[SourceQuality "1"]
[TimeControl "40/5400+30:1800+30"]

1. d4 {[%emt 0:00:30]} f5 {[%emt 0:00:30]} 2. e3 {[%emt 0:00:30]} Nf6 {[%emt 0:00:30]} 3. c4 {[%emt 0:00:30]} d6 {[%emt 0:00:30]} 4. Nc3 {[%emt 0:01:30]} g6 {[%emt 0:00:30]} 5. Bd3 {[%emt 0:00:30]} e5 {[%emt 0:01:30]} 6. Nge2 {[%emt 0:02:30]} Bg7 {[%emt 0:00:30]} 7. O-O {[%emt 0:00:30]} O-O {[%emt 0:01:30]} 8. f3 {[%emt 0:02:30]} Nc6 {[%emt 0:01:30]} 9. a3 {[%emt 0:01:30]} a5 {[%emt 0:02:30]} 10. Rb1 {[%emt 0:01:30]} Nd7 {[%emt 0:04:30]} 11. d5 {[%emt 0:03:30]} Ne7 {[%emt 0:00:30]} 12. b4 {[%emt 0:00:30]} axb4 {[%emt 0:01:30]} 13. axb4 {[%emt 0:00:00]} Nf6 {[%emt 0:01:30]} 14. e4 {[%emt 0:03:00]} f4 {[%emt 0:00:30]} 15. Qb3 {[%emt 0:02:30]} g5 {[%emt 0:01:30]} 16. h3 {[%emt 0:01:30]} Ng6 {[%emt 0:01:30]} 17. Bd2 {[%emt 0:00:30]} h5 {[%emt 0:00:30]} 18. Kf2 {[%emt 0:06:30]} g4 {[%emt 0:02:30]} 19. hxg4 {[%emt 0:02:30]} Nxg4+ {[%emt 0:08:30]} 20. Ke1 {[%emt 0:07:30]} Ne3 {[%emt 0:02:30]} 21. Bxe3 {[%emt 0:00:30]} fxe3 {[%emt 0:00:30]} 22. g3 {[%emt 0:12:30]} h4 {[%emt 0:04:30]} 23. f4 {[%emt 0:01:30]} hxg3 {[%emt 0:00:30]} 24. f5 {[%emt 0:01:30]} g2 {[%emt 0:00:30]} 25. Rf3 {[%emt 0:07:30]} Qg5 {[%emt 0:23:30]} 26. Rg3 {[%emt 0:03:30]} Qxg3+ {[%emt 0:00:30]} 27. Nxg3 {[%emt 0:01:30]} g1=Q+ {[%emt 0:00:30]} 28. Nf1 {[%emt 0:00:30]} Nh4 {[%emt 0:02:30]} 29. Kd1 {[%emt 0:00:30]} Nxf5 {[%emt 0:01:30]} 30. exf5 {[%emt 0:01:30]} Bxf5 {[%emt 0:00:00]} 31. Kc2 {[%emt 0:00:30]} Qf2+ {[%emt 0:00:00]} 0-1

[Event "CRO Team Cup 2019"]
[Site "Losinj"]
[Date "2019.05.18"]
[Round "5.13"]
[White "Biti, Ozren"]
[Black "Jovanovic, Zoran"]
[Result "1/2-1/2"]
[ECO "B07"]
[WhiteElo "2366"]
[BlackElo "2512"]
[Annotator "ChessBase"]
[PlyCount "39"]
[EventDate "2019.05.15"]
[EventType "team-tourn"]
[EventCountry "CRO"]
[SourceTitle "playchess.com"]
[Source "ChessBase"]
[SourceQuality "1"]
[TimeControl "40/5400+30:1800+30"]

1. e4 {[%emt 0:00:30]} d6 {[%emt 0:00:30]} 2. d4 {[%emt 0:00:30]} Nf6 {[%emt 0:00:30]} 3. f3 {[%emt 0:02:30]} e5 {[%emt 0:05:30]} 4. dxe5 {[%emt 0:02:30]} dxe5 {[%emt 0:00:00]} 5. Qxd8+ {[%emt 0:00:30]} Kxd8 {[%emt 0:00:00]} 6. Bc4 {[%emt 0:01:30]} Ke8 {[%emt 0:00:30]} 7. Be3 {[%emt 0:02:30]} Nbd7 {[%emt 0:03:30]} 8. Nc3 {[%emt 0:02:30]} c6 {[%emt 0:01:30]} 9. a4 {[%emt 0:02:30]} a5 {[%emt 0:01:30]} 10. Nge2 {[%emt 0:01:30]} Bc5 {[%emt 0:04:30]} 11. Nd1 {[%emt 0:02:30]} Ke7 {[%emt 0:02:30]} 12. Nc1 {[%emt 0:01:30]} Bxe3 {[%emt 0:05:30]} 13. Nxe3 {[%emt 0:01:30]} Nc5 {[%emt 0:00:30]} 14. Nb3 {[%emt 0:00:30]} Nxb3 {[%emt 0:03:30]} 15. Bxb3 {[%emt 0:00:30]} Rd8 {[%emt 0:01:30]} 16. Ke2 {[%emt 0:02:30]} Ne8 {[%emt 0:01:30]} 17. Rhd1 {[%emt 0:00:30]} Rxd1 {[%emt 0:00:30]} 18. Rxd1 {[%emt 0:00:30]} Nd6 {[%emt 0:00:30]} 19. Nc4 {[%emt 0:00:30]} Nxc4 {[%emt 0:00:30]} 20. Bxc4 {[%emt 0:00:30]} 1/2-1/2

[Event "CRO Team Cup 2019"]
[Site "Losinj"]
[Date "2019.05.18"]
[Round "5.14"]
[White "Bukal, Vladimir Jr."]
[Black "Ascic, Pero"]
[Result "1-0"]
[ECO "D03"]
[WhiteElo "2396"]
[BlackElo "2324"]
[Annotator "ChessBase"]
[PlyCount "125"]
[EventDate "2019.05.15"]
[EventType "team-tourn"]
[EventCountry "CRO"]
[SourceTitle "playchess.com"]
[Source "ChessBase"]
[SourceQuality "1"]
[TimeControl "40/5400+30:1800+30"]

1. d4 {[%emt 0:00:30]} Nf6 {[%emt 0:01:30]} 2. Nf3 {[%emt 0:00:00]} e6 {[%emt 0:01:30]} 3. Bg5 {[%emt 0:00:00]} h6 {[%emt 0:00:30]} 4. Bh4 {[%emt 0:00:30]} d5 {[%emt 0:06:30]} 5. e3 {[%emt 0:01:30]} Be7 {[%emt 0:10:30]} 6. Nbd2 {[%emt 0:00:00]} Nbd7 {[%emt 0:01:30]} 7. Bd3 {[%emt 0:01:00]} b6 {[%emt 0:02:30]} 8. O-O {[%emt 0:00:30]} Bb7 {[%emt 0:00:30]} 9. c3 {[%emt 0:01:30]} Ne4 {[%emt 0:04:30]} 10. Bxe7 {[%emt 0:02:30]} Qxe7 {[%emt 0:02:30]} 11. a4 {[%emt 0:00:30]} O-O {[%emt 0:17:30]} 12. a5 {[%emt 0:06:30]} c5 {[%emt 0:02:30]} 13. Bb5 {[%emt 0:01:30]} Nd6 {[%emt 0:14:30]} 14. a6 {[%emt 0:03:30]} Nxb5 {[%emt 0:06:30]} 15. axb7 {[%emt 0:00:30]} Rab8 {[%emt 0:00:00]} 16. Qb3 {[%emt 0:00:30]} Nd6 {[%emt 0:00:00]} 17. Rxa7 {[%emt 0:00:30]} Rxb7 {[%emt 0:00:30]} 18. Rxb7 {[%emt 0:01:30]} Nxb7 {[%emt 0:00:30]} 19. Ra1 {[%emt 0:00:30]} c4 {[%emt 0:04:30]} 20. Qb5 {[%emt 0:00:30]} Nd6 {[%emt 0:07:14]} 21. Qb4 {[%emt 0:01:30]} Nc8 {[%emt 0:01:24]} 22. Qxe7 {[%emt 0:07:30]} Nxe7 {[%emt 0:00:00]} 23. Ra7 {[%emt 0:00:30]} Rd8 {[%emt 0:00:13]} 24. e4 {[%emt 0:00:30]} Kf8 {[%emt 0:00:33]} 25. exd5 {[%emt 0:02:30]} exd5 {[%emt 0:00:19]} 26. Nf1 {[%emt 0:00:30]} f6 {[%emt 0:03:34]} 27. Ne3 {[%emt 0:01:30]} Kf7 {[%emt 0:00:20]} 28. h4 {[%emt 0:06:30]} h5 {[%emt 0:01:02]} 29. g3 {[%emt 0:04:30]} Ke6 {[%emt 0:01:07]} 30. Ng2 {[%emt 0:03:30]} Kd6 {[%emt 0:01:34]} 31. Nf4 {[%emt 0:02:30]} g6 {[%emt 0:00:31]} 32. Ne1 {[%emt 0:12:30]} Rh8 {[%emt 0:01:40]} 33. Nc2 {[%emt 0:01:30]} g5 {[%emt 0:00:36]} 34. Ng2 {[%emt 0:00:30]} Nc6 {[%emt 0:01:26]} 35. Ra1 {[%emt 0:01:30]} Ne7 {[%emt 0:01:59]} 36. f3 {[%emt 0:09:30]} Nf5 {[%emt 0:00:52]} 37. Kf2 {[%emt 0:00:00]} gxh4 {[%emt 0:02:26]} 38. Nxh4 {[%emt 0:01:00]} Nxh4 {[%emt 0:00:26]} 39. gxh4 {[%emt 0:00:30]} Rg8 {[%emt 0:00:33]} 40. Ne3 {[%emt 0:01:30]} Kc6 {[%emt 0:01:53]} 41. Ra7 {[%emt 0:42:51]} Rd8 {[%emt 0:31:16]} 42. Ng2 {[%emt 0:00:42]} b5 {[%emt 0:00:22]} 43. Nf4 {[%emt 0:00:25]} Nb6 {[%emt 0:00:24]} 44. Rf7 {[%emt 0:03:16]} b4 {[%emt 0:00:00]} 45. Rxf6+ {[%emt 0:00:00]} Kb5 {[%emt 0:00:00]} 46. cxb4 {[%emt 0:00:00]} Ra8 {[%emt 0:00:00]} 47. Ne2 {[%emt 0:00:00]} Na4 {[%emt 0:00:00]} 48. Nc3+ {[%emt 0:00:42]} Kxb4 {[%emt 0:00:00]} 49. Nxa4 {[%emt 0:01:42]} Rxa4 {[%emt 0:00:00]} 50. Rb6+ {[%emt 0:01:01]} Ka5 {[%emt 0:00:00]} 51. Rd6 {[%emt 0:02:04]} Rb4 {[%emt 0:00:00]} 52. Rxd5+ {[%emt 0:00:06]} Ka4 {[%emt 0:00:00]} 53. Rxh5 {[%emt 0:03:48]} Kb3 {[%emt 0:00:00]} 54. Rc5 {[%emt 0:00:46]} Kxb2 {[%emt 0:00:00]} 55. Ke2 {[%emt 0:00:49]} Kc3 {[%emt 0:00:02]} 56. d5 {[%emt 0:01:09]} Rb1 {[%emt 0:00:30]} 57. Ke3 {[%emt 0:00:35]} Re1+ {[%emt 0:00:30]} 58. Kf2 {[%emt 0:00:12]} Re5 {[%emt 0:02:57]} 59. f4 {[%emt 0:01:03]} Rh5 {[%emt 0:00:00]} 60. Ke3 {[%emt 0:00:41]} Rxh4 {[%emt 0:00:04]} 61. d6 {[%emt 0:00:14]} Rh3+ {[%emt 0:00:16]} 62. Ke4 {[%emt 0:00:07]} Rd3 {[%emt 0:02:16]} 63. Rd5 {[%emt 0:00:20]} 1-0

[Event "CRO Team Cup 2019"]
[Site "Losinj"]
[Date "2019.05.18"]
[Round "5.15"]
[White "Filipovic, Marko"]
[Black "Dutina, Dario"]
[Result "1-0"]
[ECO "A41"]
[WhiteElo "2324"]
[BlackElo "2225"]
[Annotator "NA"]
[PlyCount "77"]
[EventDate "2019.05.15"]
[EventType "team-tourn"]
[EventCountry "CRO"]
[SourceTitle "playchess.com"]
[Source "ChessBase"]
[SourceQuality "1"]
[TimeControl "40/5400+30:1800+30"]

1. d4 {[%emt 0:00:30]} d6 {[%emt 0:00:30]} 2. Nf3 {[%emt 0:00:00]} Bg4 {[%emt 0:00:00]} 3. c4 {[%emt 0:01:00]} Bxf3 {[%emt 0:00:00]} 4. gxf3 {[%emt 0:00:00]} e6 {[%emt 0:00:30]} 5. Nc3 {[%emt 0:02:00]} Ne7 {[%emt 0:06:30]} 6. d5 {[%emt 0:09:30]} e5 {[%emt 0:10:30]} 7. Qb3 {[%emt 0:03:30]} Qc8 {[%emt 0:13:30]} 8. Bh3 {[%emt 0:14:30]} Nd7 {[%emt 0:02:30]} 9. Be3 {[%emt 0:26:30]} Ng6 {[%emt 0:34:30]} 10. c5 {[%emt 0:11:30]} dxc5 {[%emt 0:12:57]} 11. Bxd7+ {[%emt 0:06:30]} Kxd7 {[%emt 0:00:05]} 12. d6 {[%emt 0:00:30]} cxd6 {[%emt 0:05:11]} 13. Qxf7+ {[%emt 0:00:30]} Be7 {[%emt 0:00:24]} 14. O-O-O {[%emt 0:02:01]} Qg8 {[%emt 0:04:12]} 15. Qf5+ {[%emt 0:00:17]} Qe6 {[%emt 0:00:08]} 16. Qe4 {[%emt 0:00:20]} Kc8 {[%emt 0:01:53]} 17. Nd5 {[%emt 0:08:36]} Rb8 {[%emt 0:00:54]} 18. Qa4 {[%emt 0:02:48]} Qd7 {[%emt 0:02:25]} 19. Qxa7 {[%emt 0:00:56]} Qc6 {[%emt 0:00:03]} 20. Kb1 {[%emt 0:01:30]} Kd7 {[%emt 0:00:57]} 21. Qa5 {[%emt 0:01:58]} b6 {[%emt 0:00:19]} 22. Qc3 {[%emt 0:00:57]} b5 {[%emt 0:00:42]} 23. f4 {[%emt 0:00:53]} b4 {[%emt 0:01:33]} 24. Qd3 {[%emt 0:00:35]} exf4 {[%emt 0:00:46]} 25. Qf5+ {[%emt 0:00:39]} Ke8 {[%emt 0:00:08]} 26. Bxf4 {[%emt 0:00:58]} Rf8 {[%emt 0:00:05]} 27. Qe4 {[%emt 0:00:50]} Rxf4 {[%emt 0:00:06]} 28. Nf6+ {[%emt 0:00:51]} Rxf6 {[%emt 0:00:38]} 29. Qxc6+ {[%emt 0:00:00]} Kf8 {[%emt 0:00:04]} 30. f3 {[%emt 0:00:00]} Ne5 {[%emt 0:00:52]} 31. Qe4 {[%emt 0:00:08]} b3 {[%emt 0:00:25]} 32. axb3 {[%emt 0:00:40]} Rb4 {[%emt 0:00:19]} 33. Qa8+ {[%emt 0:00:08]} Kf7 {[%emt 0:00:03]} 34. Qd5+ {[%emt 0:00:15]} Kf8 {[%emt 0:00:13]} 35. e3 {[%emt 0:02:01]} Nxf3 {[%emt 0:02:35]} 36. Rhf1 {[%emt 0:01:23]} Ne5 {[%emt 0:00:40]} 37. Rxf6+ {[%emt 0:00:08]} gxf6 {[%emt 0:00:02]} 38. Rg1 {[%emt 0:00:19]} Nf7 {[%emt 0:00:53]} 39. Qh5 {[%emt 0:00:00]} 1-0

[Event "CRO Team Cup 2019"]
[Site "Losinj"]
[Date "2019.05.18"]
[Round "5.16"]
[White "Bozinovic, Bogdan"]
[Black "Vargic, Drago"]
[Result "1-0"]
[ECO "E20"]
[WhiteElo "2197"]
[BlackElo "2274"]
[Annotator "NA"]
[PlyCount "87"]
[EventDate "2019.05.15"]
[EventType "team-tourn"]
[EventCountry "CRO"]
[SourceTitle "playchess.com"]
[Source "ChessBase"]
[SourceQuality "1"]
[TimeControl "40/5400+30:1800+30"]

1. d4 {[%emt 0:00:30]} e6 {[%emt 0:00:30]} 2. c4 {[%emt 0:00:30]} Nf6 {[%emt 0:00:30]} 3. Nc3 {[%emt 0:00:30]} Bb4 {[%emt 0:00:30]} 4. f3 {[%emt 0:01:30]} d5 {[%emt 0:04:30]} 5. a3 {[%emt 0:00:00]} Be7 {[%emt 0:03:30]} 6. e4 {[%emt 0:00:00]} dxc4 {[%emt 0:06:30]} 7. Bxc4 {[%emt 0:00:30]} O-O {[%emt 0:00:00]} 8. Be3 {[%emt 0:02:30]} a6 {[%emt 0:04:00]} 9. Nge2 {[%emt 0:02:30]} b5 {[%emt 0:00:30]} 10. Ba2 {[%emt 0:00:30]} Bb7 {[%emt 0:00:30]} 11. O-O {[%emt 0:02:30]} Nbd7 {[%emt 0:00:30]} 12. Rc1 {[%emt 0:07:30]} Rc8 {[%emt 0:04:30]} 13. b4 {[%emt 0:10:30]} e5 {[%emt 0:03:30]} 14. d5 {[%emt 0:02:30]} Ne8 {[%emt 0:02:30]} 15. Rb1 {[%emt 0:04:30]} Nd6 {[%emt 0:05:30]} 16. a4 {[%emt 0:09:30]} Nb6 {[%emt 0:08:30]} 17. Qd3 {[%emt 0:05:30]} Nbc4 {[%emt 0:04:30]} 18. Bf2 {[%emt 0:01:30]} Qd7 {[%emt 0:01:30]} 19. Bc5 {[%emt 0:08:30]} Rfd8 {[%emt 0:05:30]} 20. axb5 {[%emt 0:07:30]} axb5 {[%emt 0:00:30]} 21. Nxb5 {[%emt 0:01:30]} Ba6 {[%emt 0:14:30]} 22. Bxc4 {[%emt 0:13:46]} Nxc4 {[%emt 0:02:30]} 23. Bxe7 {[%emt 0:00:34]} Qxe7 {[%emt 0:11:58]} 24. Na7 {[%emt 0:00:25]} Ra8 {[%emt 0:05:12]} 25. Nc6 {[%emt 0:01:07]} Qf6 {[%emt 0:00:27]} 26. Nxd8 {[%emt 0:01:42]} Qb6+ {[%emt 0:01:11]} 27. Kh1 {[%emt 0:00:30]} Bb5 {[%emt 0:07:05]} 28. Nc6 {[%emt 0:03:24]} Na3 {[%emt 0:01:16]} 29. Qd2 {[%emt 0:02:41]} Nxb1 {[%emt 0:00:11]} 30. Rxb1 {[%emt 0:00:05]} Qf2 {[%emt 0:00:10]} 31. Nxe5 {[%emt 0:03:40]} h5 {[%emt 0:01:04]} 32. Qe1 {[%emt 0:01:42]} Qxe2 {[%emt 0:01:04]} 33. Qxe2 {[%emt 0:00:31]} Bxe2 {[%emt 0:00:03]} 34. h4 {[%emt 0:00:16]} f6 {[%emt 0:00:10]} 35. Ng6 {[%emt 0:00:38]} Bb5 {[%emt 0:00:45]} 36. Rc1 {[%emt 0:00:42]} Be8 {[%emt 0:00:39]} 37. Nf4 {[%emt 0:00:41]} g5 {[%emt 0:01:00]} 38. hxg5 {[%emt 0:00:15]} fxg5 {[%emt 0:00:03]} 39. Ne6 {[%emt 0:00:40]} g4 {[%emt 0:00:15]} 40. Nxc7 {[%emt 0:00:08]} Rc8 {[%emt 0:00:13]} 41. Kh2 {[%emt 0:01:33]} gxf3 {[%emt 0:06:44]} 42. gxf3 {[%emt 0:00:00]} Kf7 {[%emt 0:00:00]} 43. Rc5 {[%emt 0:02:00]} Bd7 {[%emt 0:00:00]} 44. e5 {[%emt 0:01:30]} 1-0

[Event "CRO Team Cup 2019"]
[Site "Losinj"]
[Date "2019.05.18"]
[Round "5.18"]
[White "Separovic, Tomislav"]
[Black "Vujakovic, Branko"]
[Result "0-1"]
[ECO "D80"]
[WhiteElo "2141"]
[BlackElo "2338"]
[Annotator "NA"]
[PlyCount "66"]
[EventDate "2019.05.15"]
[EventType "team-tourn"]
[EventCountry "CRO"]
[SourceTitle "playchess.com"]
[Source "ChessBase"]
[SourceQuality "1"]
[TimeControl "40/5400+30:1800+30"]

1. d4 {[%emt 0:00:30]} Nf6 {[%emt 0:00:30]} 2. Nf3 {[%emt 0:00:30]} g6 {[%emt 0:00:00]} 3. c4 {[%emt 0:00:30]} Bg7 {[%emt 0:00:00]} 4. Nc3 {[%emt 0:00:00]} d5 {[%emt 0:00:30]} 5. Bg5 {[%emt 0:02:00]} Ne4 {[%emt 0:00:00]} 6. Bf4 {[%emt 0:00:30]} Nxc3 {[%emt 0:06:00]} 7. bxc3 {[%emt 0:00:00]} c5 {[%emt 0:04:30]} 8. cxd5 {[%emt 0:02:00]} Qxd5 {[%emt 0:00:30]} 9. e3 {[%emt 0:00:30]} cxd4 {[%emt 0:01:30]} 10. cxd4 {[%emt 0:01:30]} Nc6 {[%emt 0:01:30]} 11. Be2 {[%emt 0:00:30]} Qa5+ {[%emt 0:06:30]} 12. Qd2 {[%emt 0:00:30]} Qxd2+ {[%emt 0:00:30]} 13. Kxd2 {[%emt 0:00:30]} O-O {[%emt 0:07:30]} 14. Rhc1 {[%emt 0:04:30]} Rd8 {[%emt 0:03:30]} 15. Ke1 {[%emt 0:02:30]} Bf5 {[%emt 0:00:30]} 16. a3 {[%emt 0:07:30]} Rac8 {[%emt 0:02:30]} 17. Rc5 {[%emt 0:06:30]} Nxd4 {[%emt 0:01:30]} 18. Rxc8 {[%emt 0:00:30]} Nxf3+ {[%emt 0:00:00]} 19. Bxf3 {[%emt 0:00:00]} Rxc8 {[%emt 0:01:00]} 20. Rd1 {[%emt 0:03:00]} e5 {[%emt 0:03:30]} 21. Bg5 {[%emt 0:00:30]} f6 {[%emt 0:01:30]} 22. Bh4 {[%emt 0:00:30]} e4 {[%emt 0:10:30]} 23. g4 {[%emt 0:02:30]} exf3 {[%emt 0:05:30]} 24. gxf5 {[%emt 0:00:30]} g5 {[%emt 0:05:30]} 25. Bg3 {[%emt 0:02:30]} h5 {[%emt 0:00:30]} 26. h4 {[%emt 0:00:00]} gxh4 {[%emt 0:06:30]} 27. Bxh4 {[%emt 0:00:00]} Rc4 {[%emt 0:00:30]} 28. Rd8+ {[%emt 0:00:30]} Kh7 {[%emt 0:00:30]} 29. Bg3 {[%emt 0:00:30]} h4 {[%emt 0:00:30]} 30. Bf4 {[%emt 0:07:30]} Rc1+ {[%emt 0:03:30]} 31. Kd2 {[%emt 0:01:30]} Rf1 {[%emt 0:00:30]} 32. e4 {[%emt 0:00:00]} h3 {[%emt 0:04:30]} 33. Rd7 {[%emt 0:10:00]} h2 {[%emt 0:02:30]} 0-1